[Event "Krakow Championship-B 2022"]
[Site "Krakow"]
[Date "2022.06.30"]
[Round "7.7"]
[White "Kulesza, Andrzej"]
[Black "Cichon, Bartlomiej"]
[Result "1/2-1/2"]
[ECO "B66"]
[WhiteElo "1998"]
[BlackElo "1895"]
[Annotator "NA RC"]
[PlyCount "171"]
[EventDate "2022.06.25"]
[EventType "swiss"]
[EventCountry "POL"]
[SourceTitle "playchess.com"]
[Source "ChessBase"]
[SourceQuality "1"]
[TimeControl "40/5400+30:1800+30"]

1. e4 {[%emt 0:00:18]} c5 {[%emt 0:00:02]} 2. Nf3 {[%emt 0:00:57]} d6 {[%emt 0:00:04]} 3. d4 {[%emt 0:00:52]} cxd4 {[%emt 0:00:06]} 4. Nxd4 {[%emt 0:00:19]} Nf6 {[%emt 0:00:04]} 5. Nc3 {[%emt 0:00:58]} Nc6 {[%emt 0:00:09]} 6. Bg5 {[%emt 0:02:46]} e6 {[%emt 0:00:14]} 7. Qd2 {[%emt 0:01:48]} a6 {[%emt 0:00:23]} 8. O-O-O {[%emt 0:06:20]} h6 {[%emt 0:00:12]} 9. Bf4 {[%emt 0:02:21]} Bd7 {[%emt 0:10:16]} 10. Bg3 {[%emt 0:07:58]} Rc8 {[%emt 0:08:50]} 11. f3 {[%emt 0:03:15]} Nxd4 {[%emt 0:03:22]} 12. Qxd4 {[%emt 0:00:12]} e5 {[%emt 0:00:37]} 13. Qd2 {[%emt 0:01:00]} Qc7 {[%emt 0:03:27]} 14. f4 {[%emt 0:07:00]} Be7 {[%emt 0:09:39]} 15. Kb1 {[%emt 0:01:15]} Be6 {[%emt 0:04:33]} 16. f5 {[%emt 0:13:39]} Bd7 {[%emt 0:15:55]} 17. Bh4 {[%emt 0:00:20]} Bc6 {[%emt 0:03:55]} 18. Bxf6 {[%emt 0:01:21]} gxf6 {[%emt 0:01:14]} 19. Be2 {[%emt 0:02:59]} b5 {[%emt 0:05:51]} 20. Rhf1 {[%emt 0:03:09]} b4 {[%emt 0:07:08]} 21. Nd5 {[%emt 0:00:08]} Bxd5 {[%emt 0:01:00]} 22. exd5 {[%emt 0:00:07]} Qb6 {[%emt 0:00:45]} 23. Rf3 {[%emt 0:00:35]} a5 {[%emt 0:04:06]} 24. Rb3 {[%emt 0:00:42]} Rb8 {[%emt 0:01:58]} 25. a3 {[%emt 0:01:34]} Kd8 {[%emt 0:01:48]} 26. c3 {[%emt 0:05:26]} Qf2 {[%emt 0:03:24]} 27. Bd3 {[%emt 0:00:23]} Qh4 {[%emt 0:03:33]} 28. g3 {[%emt 0:00:45]} Qg4 {[%emt 0:00:33]} 29. Qe2 {[%emt 0:02:01]} Rg8 {[%emt 0:00:24]} 30. Rc1 {[%emt 0:00:29]} Rg5 {[%emt 0:03:33]} 31. Qc2 {[%emt 0:00:26]} Rc8 {[%emt 0:01:45]} 32. axb4 {[%emt 0:00:47]} axb4 {[%emt 0:00:25]} 33. Rxb4 {[%emt 0:00:31]} Qxb4 {[%emt 0:00:26]} 34. cxb4 {[%emt 0:00:05]} Rxc2 {[%emt 0:00:04]} 35. Rxc2 {[%emt 0:00:04]} Rg4 {[%emt 0:00:40]} 36. Rc4 {[%emt 0:01:10]} Rxc4 {[%emt 0:00:36]} 37. Bxc4 {[%emt 0:00:03]} Kc7 {[%emt 0:05:49]} 38. Bb5 {[%emt 0:00:06]} Kb6 {[%emt 0:01:45]} 39. Be8 {[%emt 0:00:08]} Ka6 {[%emt 0:00:29]} 40. Kc2 {[%emt 0:00:27]} Bd8 {[%emt 0:00:24]} 41. Kd3 {[%emt 0:31:28]} Bb6 {[%emt 0:30:53]} 42. b5+ {[%emt 0:02:46]} Ka5 {[%emt 0:00:00]} 43. Kc4 {[%emt 0:00:00]} Bg1 {[%emt 0:00:00]} 44. h3 {[%emt 0:00:00]} Bf2 {[%emt 0:00:00]} 45. g4 {[%emt 0:00:00]} Be1 {[%emt 0:00:00]} 46. Bxf7 {[%emt 0:00:00]} Bf2 {[%emt 0:00:00]} 47. Be8 {[%emt 0:00:00]} Kb6 {[%emt 0:00:00]} 48. Kd3 {[%emt 0:00:00]} Bh4 {[%emt 0:00:00]} 49. Ke2 {[%emt 0:00:00]} Kc5 {[%emt 0:00:00]} 50. Bc6 {[%emt 0:00:00]} Kb6 {[%emt 0:00:00]} 51. Kd3 {[%emt 0:00:00]} Kc5 {[%emt 0:00:00]} 52. Ke3 {[%emt 0:00:00]} Kb6 {[%emt 0:00:00]} 53. Ke4 {[%emt 0:00:00]} Kc5 {[%emt 0:00:00]} 54. Kd3 {[%emt 0:00:00]} Kb6 {[%emt 0:00:00]} 55. Kc4 {[%emt 0:00:00]} Be1 {[%emt 0:00:00]} 56. Be8 {[%emt 0:00:00]} Bh4 {[%emt 0:00:00]} 57. g5 {[%emt 0:00:00]} hxg5 {[%emt 0:00:00]} 58. Bh5 {[%emt 0:00:00]} Bf2 {[%emt 0:00:00]} 59. Be2 {[%emt 0:00:00]} Bd4 {[%emt 0:00:00]} 60. b3 {[%emt 0:00:00]} Ka5 {[%emt 0:00:00]} 61. Bf1 {[%emt 0:00:00]} Bf2 {[%emt 0:00:00]} 62. Kc3 {[%emt 0:00:00]} Bd4+ {[%emt 0:00:00]} 63. Kd2 {[%emt 0:00:00]} Kb4 {[%emt 0:00:00]} 64. Bc4 {[%emt 0:00:00]} Kc5 {[%emt 0:02:27]} 65. Kd3 {[%emt 0:00:00]} Kb6 {[%emt 0:00:17]} 66. Ke4 {[%emt 0:00:00]} Kc7 {[%emt 0:00:18]} 67. Kf3 {[%emt 0:00:00]} Kd7 {[%emt 0:00:17]} 68. Kg4 {[%emt 0:00:00]} Ke7 {[%emt 0:00:59]} 69. Be2 {[%emt 0:00:00]} Kf7 {[%emt 0:01:20]} 70. Kf3 {[%emt 0:00:00]} Bb6 {[%emt 0:00:42]} 71. Ke4 {[%emt 0:00:00]} Kg7 {[%emt 0:00:35]} 72. Bh5 {[%emt 0:00:00]} Kh6 {[%emt 0:00:20]} 73. Bg6 {[%emt 0:00:00]} Kg7 {[%emt 0:00:19]} 74. Kf3 {[%emt 0:00:00]} Kh6 {[%emt 0:00:57]} 75. Kg4 {[%emt 0:00:00]} Kg7 {[%emt 0:00:12]} 76. Kh5 {[%emt 0:00:00]} e4 {[%emt 0:01:21]} 77. Kg4 {[%emt 0:00:00]} Kh6 {[%emt 0:00:51]} 78. Kg3 {[%emt 0:00:00]} Kg7 {[%emt 0:00:58]} 79. Bh5 {[%emt 0:00:00]} Kh6 {[%emt 0:00:17]} 80. Bd1 {[%emt 0:00:00]} Kg7 {[%emt 0:01:11]} 81. Bc2 {[%emt 0:00:00]} e3 {[%emt 0:00:03]} 82. Bd1 {[%emt 0:00:00]} Kh7 {[%emt 0:00:33]} 83. Kg4 {[%emt 0:00:00]} Kg7 {[%emt 0:00:14]} 84. Be2 {[%emt 0:00:00]} Kh7 {[%emt 0:00:31]} 85. h4 {[%emt 0:00:00]} gxh4 {[%emt 0:00:10]} 86. Kxh4 {[%emt 0:00:00]} 1/2-1/2

[Event "Krakow Championship-B 2022"]
[Site "Krakow"]
[Date "2022.06.30"]
[Round "7.8"]
[White "Al-Hajiri, Bader"]
[Black "Cattaruzzo, Nicolo`"]
[Result "0-1"]
[ECO "A85"]
[WhiteElo "2052"]
[BlackElo "1744"]
[Annotator "NA RC"]
[PlyCount "92"]
[EventDate "2022.06.25"]
[EventType "swiss"]
[EventCountry "POL"]
[SourceTitle "playchess.com"]
[Source "ChessBase"]
[SourceQuality "1"]
[TimeControl "40/5400+30:1800+30"]

1. d4 {[%emt 0:01:32]} f5 {[%emt 0:00:53]} 2. c4 {[%emt 0:00:09]} Nf6 {[%emt 0:00:27]} 3. Nc3 {[%emt 0:00:09]} g6 {[%emt 0:01:49]} 4. Bf4 {[%emt 0:01:23]} Bg7 {[%emt 0:01:58]} 5. h3 {[%emt 0:00:31]} d6 {[%emt 0:03:16]} 6. Nf3 {[%emt 0:00:32]} Nc6 {[%emt 0:11:03]} 7. d5 {[%emt 0:03:11]} Nh5 {[%emt 0:05:51]} 8. Bd2 {[%emt 0:13:23]} Ne5 {[%emt 0:03:50]} 9. Nxe5 {[%emt 0:01:55]} dxe5 {[%emt 0:01:12]} 10. e4 {[%emt 0:01:17]} f4 {[%emt 0:01:47]} 11. h4 {[%emt 0:03:55]} h6 {[%emt 0:07:24]} 12. c5 {[%emt 0:06:14]} Bd7 {[%emt 0:09:00]} 13. Qb3 {[%emt 0:02:14]} Bg4 {[%emt 0:11:58]} 14. Bb5+ {[%emt 0:07:58]} Kf8 {[%emt 0:03:42]} 15. Ne2 {[%emt 0:02:08]} Kg8 {[%emt 0:04:27]} 16. f3 {[%emt 0:06:45]} Bc8 {[%emt 0:01:37]} 17. O-O-O {[%emt 0:00:52]} Kh7 {[%emt 0:01:07]} 18. Rdg1 {[%emt 0:00:16]} Bd7 {[%emt 0:03:52]} 19. Bd3 {[%emt 0:02:18]} c6 {[%emt 0:02:05]} 20. g4 {[%emt 0:04:05]} Nf6 {[%emt 0:00:36]} 21. g5 {[%emt 0:01:05]} Nh5 {[%emt 0:00:18]} 22. gxh6 {[%emt 0:00:16]} Bf6 {[%emt 0:02:11]} 23. dxc6 {[%emt 0:00:35]} Be8 {[%emt 0:02:04]} 24. cxb7 {[%emt 0:00:11]} Rb8 {[%emt 0:00:19]} 25. Nxf4 {[%emt 0:04:35]} Nxf4 {[%emt 0:05:22]} 26. Bxf4 {[%emt 0:00:16]} Rg8 {[%emt 0:06:12]} 27. Be3 {[%emt 0:05:07]} Qc7 {[%emt 0:04:38]} 28. h5 {[%emt 0:03:06]} Rxb7 {[%emt 0:00:28]} 29. Qe6 {[%emt 0:00:30]} Rb6 {[%emt 0:01:26]} 30. Qc4 {[%emt 0:01:09]} Rb8 {[%emt 0:00:43]} 31. hxg6+ {[%emt 0:01:01]} Rxg6 {[%emt 0:00:19]} 32. Rxg6 {[%emt 0:00:41]} Bxg6 {[%emt 0:00:29]} 33. Rg1 {[%emt 0:00:05]} Qd7 {[%emt 0:01:23]} 34. f4 {[%emt 0:03:30]} exf4 {[%emt 0:01:01]} 35. Rxg6 {[%emt 0:00:26]} Bxb2+ {[%emt 0:01:03]} 36. Kd2 {[%emt 0:00:32]} fxe3+ {[%emt 0:00:21]} 37. Ke2 {[%emt 0:00:20]} Kxg6 {[%emt 0:00:43]} 38. e5+ {[%emt 0:00:06]} Kh5 {[%emt 0:01:12]} 39. Qf7+ {[%emt 0:00:17]} Kh4 {[%emt 0:00:07]} 40. e6 {[%emt 0:00:51]} Qd4 {[%emt 0:01:41]} 41. Qxe7+ {[%emt 0:31:44]} Qf6 {[%emt 0:06:34]} 42. Qxf6+ {[%emt 0:00:00]} Bxf6 {[%emt 0:00:09]} 43. c6 {[%emt 0:00:00]} Rc8 {[%emt 0:05:23]} 44. Be4 {[%emt 0:00:00]} Kg5 {[%emt 0:02:09]} 45. h7 {[%emt 0:00:00]} Kf4 {[%emt 0:01:10]} 46. Bg2 {[%emt 0:00:00]} Rc7 {[%emt 0:00:49]} 0-1

[Event "Krakow Championship-B 2022"]
[Site "Krakow"]
[Date "2022.06.30"]
[Round "7.9"]
[White "Budkiewicz, Magdalena"]
[Black "Palacki, Rafal"]
[Result "0-1"]
[ECO "C02"]
[WhiteElo "1916"]
[BlackElo "1810"]
[Annotator "NA RC"]
[PlyCount "70"]
[EventDate "2022.06.25"]
[EventType "swiss"]
[EventCountry "POL"]
[SourceTitle "playchess.com"]
[Source "ChessBase"]
[SourceQuality "1"]
[TimeControl "40/5400+30:1800+30"]

1. e4 {[%emt 0:00:03]} e6 {[%emt 0:00:35]} 2. d4 {[%emt 0:00:31]} d5 {[%emt 0:00:06]} 3. e5 {[%emt 0:00:25]} c5 {[%emt 0:00:06]} 4. Nf3 {[%emt 0:00:40]} Nc6 {[%emt 0:01:21]} 5. Bd3 {[%emt 0:01:02]} cxd4 {[%emt 0:05:16]} 6. O-O {[%emt 0:01:11]} Nge7 {[%emt 0:03:13]} 7. Bf4 {[%emt 0:00:24]} Ng6 {[%emt 0:01:20]} 8. Bg3 {[%emt 0:00:34]} Be7 {[%emt 0:02:37]} 9. Nbd2 {[%emt 0:01:38]} Nh4 {[%emt 0:20:03]} 10. Nxh4 {[%emt 0:14:48]} Bxh4 {[%emt 0:00:11]} 11. Qg4 {[%emt 0:00:21]} Qg5 {[%emt 0:11:07]} 12. Qxh4 {[%emt 0:02:23]} Qxd2 {[%emt 0:00:05]} 13. f4 {[%emt 0:12:35]} Qb4 {[%emt 0:08:02]} 14. Rae1 {[%emt 0:13:33]} g6 {[%emt 0:11:28]} 15. f5 {[%emt 0:12:21]} exf5 {[%emt 0:04:52]} 16. e6 {[%emt 0:02:31]} Bxe6 {[%emt 0:08:09]} 17. Qf6 {[%emt 0:04:30]} Kd7 {[%emt 0:06:39]} 18. Bh4 {[%emt 0:01:38]} Qe7 {[%emt 0:03:21]} 19. Qxh8 {[%emt 0:03:44]} Rxh8 {[%emt 0:00:22]} 20. Bxe7 {[%emt 0:00:04]} Kxe7 {[%emt 0:00:49]} 21. h4 {[%emt 0:05:00]} h5 {[%emt 0:02:50]} 22. Rf4 {[%emt 0:02:00]} a6 {[%emt 0:01:03]} 23. a3 Kd6 24. Kh2 {[%emt 0:02:49]} Re8 {[%emt 0:02:22]} 25. Kg3 {[%emt 0:00:38]} Re7 {[%emt 0:00:38]} 26. Re2 {[%emt 0:03:28]} Bd7 {[%emt 0:01:56]} 27. Rff2 {[%emt 0:01:38]} Ne5 {[%emt 0:01:16]} 28. Rd2 {[%emt 0:01:18]} Ng4 {[%emt 0:00:40]} 29. Rf4 {[%emt 0:01:14]} Re3+ {[%emt 0:00:06]} 30. Rf3 {[%emt 0:00:18]} Ke5 {[%emt 0:00:43]} 31. Re2 {[%emt 0:02:42]} f4+ {[%emt 0:00:27]} 32. Kh3 {[%emt 0:00:07]} Nf2+ {[%emt 0:01:13]} 33. Kh2 {[%emt 0:00:09]} Nxd3 {[%emt 0:00:26]} 34. Rexe3+ {[%emt 0:00:39]} dxe3 {[%emt 0:00:08]} 35. cxd3 {[%emt 0:00:05]} e2 {[%emt 0:00:36]} 0-1

[Event "Krakow Championship-B 2022"]
[Site "Krakow"]
[Date "2022.06.30"]
[Round "7.10"]
[White "Karut, Kacper"]
[Black "Czaplak, Lukasz"]
[Result "0-1"]
[ECO "C54"]
[WhiteElo "1775"]
[BlackElo "1905"]
[Annotator "NA RC"]
[PlyCount "104"]
[EventDate "2022.06.25"]
[EventType "swiss"]
[EventCountry "POL"]
[SourceTitle "playchess.com"]
[Source "ChessBase"]
[SourceQuality "1"]
[TimeControl "40/5400+30:1800+30"]

1. e4 {[%emt 0:00:03]} e5 {[%emt 0:00:26]} 2. Nf3 {[%emt 0:00:13]} Nc6 {[%emt 0:00:05]} 3. Bc4 {[%emt 0:00:22]} Bc5 {[%emt 0:00:05]} 4. c3 {[%emt 0:00:27]} Nf6 {[%emt 0:00:05]} 5. d4 {[%emt 0:00:50]} exd4 {[%emt 0:00:04]} 6. b4 {[%emt 0:00:46]} Bb6 {[%emt 0:04:46]} 7. e5 {[%emt 0:00:56]} d5 {[%emt 0:05:28]} 8. exf6 {[%emt 0:00:57]} dxc4 {[%emt 0:00:10]} 9. Qe2+ {[%emt 0:01:06]} Be6 {[%emt 0:06:41]} 10. b5 {[%emt 0:00:41]} Na5 {[%emt 0:04:14]} 11. fxg7 {[%emt 0:15:05]} Rg8 {[%emt 0:00:01]} 12. Bg5 {[%emt 0:03:13]} Qd5 {[%emt 0:05:13]} 13. Bf6 {[%emt 0:04:58]} d3 {[%emt 0:06:16]} 14. Qe5 {[%emt 0:01:48]} Qxe5+ {[%emt 0:10:58]} 15. Nxe5 {[%emt 0:01:05]} c6 {[%emt 0:01:25]} 16. Nd2 {[%emt 0:10:35]} cxb5 {[%emt 0:13:47]} 17. Ne4 {[%emt 0:14:55]} Bc7 {[%emt 0:00:09]} 18. f4 {[%emt 0:01:15]} Bd5 {[%emt 0:06:48]} 19. Ng3 {[%emt 0:04:33]} Nc6 {[%emt 0:10:37]} 20. Nf5 {[%emt 0:12:08]} Bxe5 {[%emt 0:03:07]} 21. fxe5 {[%emt 0:00:58]} Kd7 {[%emt 0:00:41]} 22. Nh6 {[%emt 0:03:27]} Rge8 {[%emt 0:01:10]} 23. Kd2 {[%emt 0:06:12]} b4 {[%emt 0:01:24]} 24. Rab1 {[%emt 0:05:28]} bxc3+ {[%emt 0:01:02]} 25. Kxc3 {[%emt 0:00:10]} b6 {[%emt 0:00:34]} 26. Rb5 {[%emt 0:02:07]} Be6 {[%emt 0:00:53]} 27. Rf1 {[%emt 0:01:40]} Kc7 {[%emt 0:00:52]} 28. Bh4 {[%emt 0:05:29]} a6 {[%emt 0:00:53]} 29. Rbb1 {[%emt 0:00:21]} b5 {[%emt 0:01:07]} 30. a3 {[%emt 0:00:22]} Kb6 {[%emt 0:02:32]} 31. Bf2+ {[%emt 0:01:28]} Kb7 {[%emt 0:02:55]} 32. Bg3 {[%emt 0:00:44]} Kb6 {[%emt 0:01:42]} 33. Nxf7 {[%emt 0:01:09]} a5 {[%emt 0:01:09]} 34. Nd6 {[%emt 0:01:22]} b4+ {[%emt 0:00:04]} 35. axb4 {[%emt 0:00:18]} axb4+ {[%emt 0:00:00]} 36. Kd2 {[%emt 0:00:47]} Ra2+ {[%emt 0:00:36]} 37. Ke3 {[%emt 0:00:27]} Re2+ {[%emt 0:00:11]} 38. Kf4 {[%emt 0:00:06]} Rg8 {[%emt 0:01:25]} 39. Kg5 {[%emt 0:00:58]} Rxg7+ {[%emt 0:00:19]} 40. Kh6 {[%emt 0:00:05]} Rg4 {[%emt 0:06:10]} 41. Rf6 {[%emt 0:04:36]} Bd5 {[%emt 0:04:01]} 42. Bf2+ {[%emt 0:11:24]} Rxf2 {[%emt 0:07:49]} 43. Rxf2 {[%emt 0:00:06]} c3 {[%emt 0:00:46]} 44. Nf5 {[%emt 0:04:25]} c2 {[%emt 0:00:52]} 45. Rg1 {[%emt 0:04:54]} b3 {[%emt 0:01:59]} 46. Ne3 {[%emt 0:01:13]} Rd4 {[%emt 0:00:27]} 47. Rd2 {[%emt 0:01:58]} Be4 {[%emt 0:03:18]} 48. e6 {[%emt 0:03:47]} b2 {[%emt 0:01:08]} 49. Nxc2 {[%emt 0:01:51]} dxc2 {[%emt 0:00:11]} 50. Rxd4 {[%emt 0:00:27]} Nxd4 {[%emt 0:00:10]} 51. e7 {[%emt 0:00:08]} Nf5+ {[%emt 0:00:05]} 52. Kxh7 {[%emt 0:00:18]} Nxe7+ 0-1

[Event "Krakow Championship-B 2022"]
[Site "Krakow"]
[Date "2022.06.30"]
[Round "7.11"]
[White "Marciniak, Leonard"]
[Black "Cwiek, Ryszard"]
[Result "1/2-1/2"]
[ECO "A44"]
[WhiteElo "1799"]
[BlackElo "1880"]
[Annotator "NA RC"]
[PlyCount "103"]
[EventDate "2022.06.25"]
[EventType "swiss"]
[EventCountry "POL"]
[SourceTitle "playchess.com"]
[Source "ChessBase"]
[SourceQuality "1"]
[TimeControl "40/5400+30:1800+30"]

1. d4 {[%emt 0:00:17]} c5 {[%emt 0:00:36]} 2. d5 {[%emt 0:00:29]} e5 {[%emt 0:00:18]} 3. e4 {[%emt 0:01:01]} d6 {[%emt 0:00:12]} 4. Nc3 {[%emt 0:00:42]} a6 {[%emt 0:00:18]} 5. a4 {[%emt 0:00:14]} Be7 {[%emt 0:00:54]} 6. Nf3 {[%emt 0:02:05]} Bg4 {[%emt 0:00:10]} 7. h3 {[%emt 0:01:58]} Bxf3 {[%emt 0:00:41]} 8. Qxf3 {[%emt 0:00:12]} Bg5 {[%emt 0:00:03]} 9. Bxg5 {[%emt 0:04:50]} Qxg5 {[%emt 0:00:03]} 10. Qg4 {[%emt 0:00:43]} Qxg4 {[%emt 0:00:09]} 11. hxg4 {[%emt 0:00:02]} h6 {[%emt 0:00:07]} 12. a5 {[%emt 0:05:21]} Nd7 {[%emt 0:01:41]} 13. Kd2 {[%emt 0:07:56]} O-O-O {[%emt 0:02:19]} 14. Bd3 {[%emt 0:09:23]} Ngf6 {[%emt 0:31:02]} 15. f3 {[%emt 0:01:30]} g6 {[%emt 0:08:14]} 16. g3 {[%emt 0:07:13]} h5 {[%emt 0:04:40]} 17. gxh5 {[%emt 0:05:00]} gxh5 {[%emt 0:17:02]} 18. Rh3 {[%emt 0:07:01]} Rh7 {[%emt 0:14:01]} 19. Rah1 {[%emt 0:00:50]} Rdh8 {[%emt 0:02:23]} 20. Nd1 {[%emt 0:01:43]} Nf8 {[%emt 0:05:09]} 21. Ne3 {[%emt 0:01:21]} Ng6 {[%emt 0:00:06]} 22. Nf5 {[%emt 0:02:16]} Kd7 {[%emt 0:00:04]} 23. Ke3 {[%emt 0:08:07]} Ne7 {[%emt 0:00:16]} 24. Nh4 {[%emt 0:03:42]} Rg7 {[%emt 0:01:32]} 25. Kf2 {[%emt 0:06:39]} Rhg8 {[%emt 0:02:42]} 26. Rg1 {[%emt 0:06:32]} Kc7 {[%emt 0:01:34]} 27. Ng2 {[%emt 0:03:22]} Rb8 {[%emt 0:02:57]} 28. Ne3 {[%emt 0:00:25]} Rbg8 {[%emt 0:01:47]} 29. Rhh1 {[%emt 0:00:46]} Kd7 {[%emt 0:01:09]} 30. Bf1 {[%emt 0:02:59]} Kc7 {[%emt 0:00:46]} 31. Bh3 {[%emt 0:00:46]} Rg5 {[%emt 0:00:12]} 32. Bf5 {[%emt 0:02:22]} Nfxd5 {[%emt 0:01:41]} 33. exd5 {[%emt 0:01:35]} Nxf5 {[%emt 0:00:04]} 34. Nxf5 {[%emt 0:03:40]} Rxf5 {[%emt 0:00:01]} 35. Rh4 {[%emt 0:00:48]} Rfg5 {[%emt 0:02:08]} 36. Rc4 {[%emt 0:01:34]} b5 {[%emt 0:00:47]} 37. axb6+ {[%emt 0:00:12]} Kxb6 {[%emt 0:00:02]} 38. Ra4 {[%emt 0:00:51]} a5 {[%emt 0:00:43]} 39. Rga1 {[%emt 0:01:05]} Rxg3 {[%emt 0:00:42]} 40. Rxa5 {[%emt 0:00:13]} Rg2+ {[%emt 0:00:12]} 41. Ke3 {[%emt 0:30:41]} c4 {[%emt 0:21:42]} 42. Ra6+ {[%emt 0:00:00]} Kb7 {[%emt 0:01:48]} 43. Ra7+ {[%emt 0:00:00]} Kb8 {[%emt 0:02:03]} 44. Ra8+ {[%emt 0:00:00]} Kb7 {[%emt 0:00:02]} 45. R1a7+ {[%emt 0:00:00]} Kb6 {[%emt 0:00:04]} 46. Ra6+ {[%emt 0:00:00]} Kc5 {[%emt 0:02:19]} 47. Ra5+ {[%emt 0:00:00]} Kb4 {[%emt 0:01:21]} 48. Ra4+ {[%emt 0:00:00]} Kc5 {[%emt 0:00:14]} 49. R4a5+ {[%emt 0:00:00]} Kb4 {[%emt 0:00:05]} 50. Ra4+ {[%emt 0:00:00]} Kb5 {[%emt 0:00:15]} 51. R4a5+ {[%emt 0:00:00]} Kb4 {[%emt 0:00:02]} 52. Ke4 1/2-1/2

[Event "Krakow Championship-B 2022"]
[Site "Krakow"]
[Date "2022.06.30"]
[Round "7.12"]
[White "Zarebska, Lena"]
[Black "Szopa, Emilia"]
[Result "1-0"]
[ECO "B12"]
[WhiteElo "1829"]
[BlackElo "1839"]
[Annotator "NA RC"]
[PlyCount "53"]
[EventDate "2022.06.25"]
[EventType "swiss"]
[EventCountry "POL"]
[SourceTitle "playchess.com"]
[Source "ChessBase"]
[SourceQuality "1"]
[TimeControl "40/5400+30:1800+30"]

1. e4 {[%emt 0:00:03]} c6 {[%emt 0:00:18]} 2. d4 {[%emt 0:00:07]} d5 {[%emt 0:00:09]} 3. e5 {[%emt 0:00:05]} c5 {[%emt 0:01:12]} 4. dxc5 {[%emt 0:03:04]} Nc6 {[%emt 0:02:46]} 5. Nf3 {[%emt 0:00:05]} Bg4 {[%emt 0:06:35]} 6. c3 {[%emt 0:00:40]} e6 {[%emt 0:01:18]} 7. Be3 {[%emt 0:00:21]} Qc7 {[%emt 0:07:19]} 8. Nbd2 {[%emt 0:10:06]} Nge7 {[%emt 0:03:00]} 9. Qa4 {[%emt 0:01:22]} Bxf3 {[%emt 0:05:00]} 10. Nxf3 {[%emt 0:00:30]} Nf5 {[%emt 0:04:24]} 11. Bd4 {[%emt 0:04:33]} Be7 {[%emt 0:02:19]} 12. Bd3 {[%emt 0:06:25]} O-O {[%emt 0:03:14]} 13. O-O {[%emt 0:00:11]} f6 {[%emt 0:03:56]} 14. Rfe1 {[%emt 0:11:32]} Nfxd4 {[%emt 0:08:15]} 15. cxd4 {[%emt 0:00:11]} fxe5 {[%emt 0:00:53]} 16. Nxe5 {[%emt 0:00:27]} Nxe5 {[%emt 0:11:45]} 17. Rxe5 {[%emt 0:00:05]} Bxc5 {[%emt 0:05:35]} 18. Rc1 {[%emt 0:09:00]} Rf4 {[%emt 0:02:22]} 19. Qc2 {[%emt 0:12:25]} Rxd4 {[%emt 0:02:04]} 20. Bxh7+ {[%emt 0:00:21]} Kh8 {[%emt 0:03:09]} 21. Rh5 {[%emt 0:00:26]} Qe7 {[%emt 0:07:25]} 22. Qe2 {[%emt 0:03:58]} Rf4 {[%emt 0:04:29]} 23. Bg6+ {[%emt 0:01:00]} Kg8 {[%emt 0:00:16]} 24. Rh8+ {[%emt 0:00:09]} Kxh8 {[%emt 0:00:07]} 25. Qh5+ {[%emt 0:00:04]} Kg8 {[%emt 0:00:08]} 26. Qh7+ {[%emt 0:00:03]} Kf8 {[%emt 0:00:05]} 27. Qh8# 1-0

[Event "Krakow Championship-B 2022"]
[Site "Krakow"]
[Date "2022.07.01"]
[Round "8.1"]
[White "Szczurek, Krzysztof"]
[Black "Hnatyshyn, Anastasiia"]
[Result "1/2-1/2"]
[ECO "D79"]
[WhiteElo "2151"]
[BlackElo "1890"]
[Annotator "RC"]
[PlyCount "97"]
[EventDate "2022.06.25"]
[EventType "swiss"]
[EventCountry "POL"]
[SourceTitle "playchess.com"]
[Source "ChessBase"]
[SourceQuality "1"]
[TimeControl "40/5400+30:1800+30"]

1. Nf3 {[%emt 0:00:03]} d5 {[%emt 0:00:06]} 2. g3 {[%emt 0:00:04]} g6 {[%emt 0:00:06]} 3. d4 {[%emt 0:00:07]} Bg7 {[%emt 0:00:08]} 4. Bg2 {[%emt 0:00:07]} Nf6 {[%emt 0:00:06]} 5. c4 {[%emt 0:00:36]} c6 {[%emt 0:00:09]} 6. O-O {[%emt 0:01:07]} O-O {[%emt 0:00:56]} 7. cxd5 {[%emt 0:00:11]} cxd5 {[%emt 0:00:17]} 8. Nc3 {[%emt 0:00:14]} Nc6 {[%emt 0:03:06]} 9. Bf4 {[%emt 0:03:19]} Ne4 {[%emt 0:05:38]} 10. Rc1 {[%emt 0:03:38]} Bf5 {[%emt 0:03:23]} 11. Be3 {[%emt 0:08:11]} Rc8 {[%emt 0:06:19]} 12. h3 {[%emt 0:04:45]} Qd7 {[%emt 0:08:46]} 13. Kh2 {[%emt 0:02:03]} Rfd8 {[%emt 0:09:53]} 14. Nh4 {[%emt 0:07:14]} Nxc3 {[%emt 0:02:33]} 15. bxc3 {[%emt 0:03:00]} Be6 {[%emt 0:02:33]} 16. f4 {[%emt 0:01:09]} Na5 {[%emt 0:01:41]} 17. g4 {[%emt 0:00:41]} Nc4 {[%emt 0:01:20]} 18. Bg1 {[%emt 0:01:45]} f5 {[%emt 0:05:17]} 19. gxf5 {[%emt 0:02:16]} Bxf5 {[%emt 0:00:26]} 20. Nxf5 {[%emt 0:00:12]} gxf5 {[%emt 0:00:13]} 21. Bf2 {[%emt 0:01:34]} Kh8 {[%emt 0:03:55]} 22. Qd3 {[%emt 0:01:28]} Bf6 {[%emt 0:02:23]} 23. Bf3 {[%emt 0:00:30]} Rg8 {[%emt 0:01:18]} 24. Rg1 {[%emt 0:00:06]} e6 {[%emt 0:01:06]} 25. e3 {[%emt 0:03:56]} Qa4 {[%emt 0:06:36]} 26. Qc2 {[%emt 0:02:17]} Qa5 {[%emt 0:00:11]} 27. Be2 {[%emt 0:00:52]} Rxg1 {[%emt 0:02:42]} 28. Kxg1 {[%emt 0:00:07]} Nd6 {[%emt 0:03:40]} 29. Bd3 {[%emt 0:00:33]} b5 {[%emt 0:00:15]} 30. Qb2 {[%emt 0:02:00]} Qc7 {[%emt 0:03:58]} 31. Be1 {[%emt 0:02:06]} Rg8+ {[%emt 0:02:13]} 32. Kh1 {[%emt 0:00:11]} Qg7 {[%emt 0:01:32]} 33. Qh2 {[%emt 0:00:42]} Qf7 {[%emt 0:04:15]} 34. Rc2 {[%emt 0:03:31]} Qh5 {[%emt 0:03:21]} 35. Be2 {[%emt 0:01:17]} Qh6 {[%emt 0:00:01]} 36. h4 {[%emt 0:00:56]} Qg7 {[%emt 0:02:53]} 37. Bd3 {[%emt 0:01:17]} Nc4 {[%emt 0:01:38]} 38. Bf2 {[%emt 0:01:45]} a5 {[%emt 0:01:28]} 39. Be2 {[%emt 0:02:07]} Qe7 {[%emt 0:00:55]} 40. Qh3 {[%emt 0:01:51]} b4 {[%emt 0:02:14]} 41. cxb4 {[%emt 0:36:14]} Qxb4 {[%emt 0:30:11]} 42. Qf1 {[%emt 0:00:15]} Rc8 {[%emt 0:08:30]} 43. Kh2 {[%emt 0:03:34]} Rc7 {[%emt 0:00:00]} 44. Qc1 {[%emt 0:00:00]} Bd8 {[%emt 0:00:00]} 45. Be1 {[%emt 0:00:00]} Qa3 {[%emt 0:00:00]} 46. Qxa3 {[%emt 0:00:00]} Nxa3 {[%emt 0:00:00]} 47. Rxc7 {[%emt 0:00:00]} Bxc7 {[%emt 0:00:00]} 48. Kg2 {[%emt 0:00:00]} Kg7 {[%emt 0:00:00]} 49. Bd3 {[%emt 0:00:00]} 1/2-1/2